[Event "December 19 Early 2023"]
[Site "https://www.chess.com"]
[Date "2023.12.19"]
[Round "9"]
[White "Kashefi, Amir Hosein"]
[Black "Aaditya Dhingra"]
[Result "1-0"]
[Board "55"]
[TimeControl "180+1"]
[WhiteFideId "12557935"]
[BlackFideId "25678191"]
[WhiteElo "2109"]
[BlackElo "2269"]
[WhiteTeam "IRI"]
[BlackTeam "IND"]
[WhiteClock "0:00:59"]
[BlackClock "0:00:52"]

1. d4 {[%clk 0:02:45]}  d5 {[%clk 0:02:58]} 2. c4 {[%clk 0:02:45]}  c6 {[%clk 0:02:58]} 3. Nc3 {[%clk 0:02:46]}  Nf6 {[%clk 0:02:57]} 4. cxd5 {[%clk 0:02:47]}  cxd5 {[%clk 0:02:57]} 5. Nf3 {[%clk 0:02:47]}  Nc6 {[%clk 0:02:56]} 6. Bf4 {[%clk 0:02:48]}  a6 {[%clk 0:02:54]} 7. e3 {[%clk 0:02:37]}  Bg4 {[%clk 0:02:53]} 8. Rc1 {[%clk 0:02:32]}  e6 {[%clk 0:02:52]} 9. Qb3 {[%clk 0:02:25]}  Bb4 {[%clk 0:02:19]} 10. Ne5 {[%clk 0:02:21]}  Qa5 {[%clk 0:02:10]} 11. a3 {[%clk 0:02:12]}  Bxc3+ {[%clk 0:02:09]} 12. Qxc3 {[%clk 0:02:08]}  Qxc3+ {[%clk 0:02:05]} 13. Rxc3 {[%clk 0:02:09]}  Nxe5 {[%clk 0:02:03]} 14. Bxe5 {[%clk 0:02:08]}  O-O {[%clk 0:02:02]} 15. Bxf6 {[%clk 0:02:08]}  gxf6 {[%clk 0:02:01]} 16. Bd3 {[%clk 0:02:06]}  Rfc8 {[%clk 0:01:58]} 17. Kd2 {[%clk 0:02:05]}  Rxc3 {[%clk 0:01:58]} 18. bxc3 {[%clk 0:02:00]}  Rc8 {[%clk 0:01:54]} 19. a4 {[%clk 0:01:53]}  Bh5 {[%clk 0:01:49]} 20. Rb1 {[%clk 0:01:52]}  Rc7 {[%clk 0:01:48]} 21. f4 {[%clk 0:01:44]}  Bg6 {[%clk 0:01:46]} 22. f5 {[%clk 0:01:40]}  Bxf5 {[%clk 0:01:46]} 23. Bxf5 {[%clk 0:01:40]}  exf5 {[%clk 0:01:47]} 24. a5 {[%clk 0:01:37]}  Kf8 {[%clk 0:01:45]} 25. Rb6 {[%clk 0:01:33]}  Ke7 {[%clk 0:01:45]} 26. g3 {[%clk 0:01:30]}  h6 {[%clk 0:01:39]} 27. Kd3 {[%clk 0:01:30]}  h5 {[%clk 0:01:38]} 28. h4 {[%clk 0:01:29]}  Rd7 {[%clk 0:01:34]} 29. Rb1 {[%clk 0:01:28]}  Ke6 {[%clk 0:01:33]} 30. Rb2 {[%clk 0:01:26]}  Rc7 {[%clk 0:01:33]} 31. Rb4 {[%clk 0:01:25]}  Rd7 {[%clk 0:01:32]} 32. Rb6+ {[%clk 0:01:23]}  Ke7 {[%clk 0:01:32]} 33. Ke2 {[%clk 0:01:14]}  Rc7 {[%clk 0:01:31]} 34. Rb3 {[%clk 0:01:13]}  Kd6 {[%clk 0:01:28]} 35. Kf3 {[%clk 0:01:10]}  Ke6 {[%clk 0:01:22]} 36. Kf4 {[%clk 0:01:09]}  Rc6 {[%clk 0:01:15]} 37. Rxb7 {[%clk 0:01:07]}  Rxc3 {[%clk 0:01:15]} 38. Rb6+ {[%clk 0:01:07]}  Ke7 {[%clk 0:01:15]} 39. Rxa6 {[%clk 0:01:04]}  Rc1 {[%clk 0:01:10]} 40. Kf3 {[%clk 0:01:04]}  Rf1+ {[%clk 0:01:07]} 41. Ke2 {[%clk 0:01:03]}  Rg1 {[%clk 0:01:08]} 42. Kf2 {[%clk 0:01:04]}  Ra1 {[%clk 0:01:08]} 43. Ra8 {[%clk 0:01:04]}  Ra2+ {[%clk 0:01:04]} 44. Kf3 {[%clk 0:01:04]}  Ra1 {[%clk 0:01:04]} 45. a6 {[%clk 0:01:04]}  Ke6 {[%clk 0:01:03]} 46. a7 {[%clk 0:01:01]}  Ke7 {[%clk 0:01:04]} 47. Ke2 {[%clk 0:01:02]}  Ra3 {[%clk 0:00:59]} 48. Kd2 {[%clk 0:01:01]}  Ra1 {[%clk 0:00:58]} 49. Kc3 {[%clk 0:01:02]}  Ra6 {[%clk 0:00:57]} 50. Kb4 {[%clk 0:01:01]}  Ra1 {[%clk 0:00:57]} 51. Kb5 {[%clk 0:01:01]}  Ra2 {[%clk 0:00:57]} 52. Kc6 {[%clk 0:01:01]}  Ra5 {[%clk 0:00:57]} 53. Kb6 {[%clk 0:00:59]}  Ra1 {[%clk 0:00:52]} 54. Rb8 {[%clk 0:00:59]} 1-0

[Event "December 19 Early 2023"]
[Site "https://www.chess.com"]
[Date "2023.12.19"]
[Round "9"]
[White "Deac, Bogdan-Daniel"]
[Black "Nanu, Costica-Ciprian"]
[Result "1-0"]
[Board "62"]
[TimeControl "180+1"]
[WhiteFideId "1226380"]
[BlackFideId "1204580"]
[WhiteElo "2641"]
[BlackElo "2485"]
[WhiteTeam "ROU"]
[BlackTeam "ROU"]
[WhiteClock "0:00:07"]
[BlackClock "0:00:00"]

1. e4 {[%clk 0:03:00]}  c5 {[%clk 0:02:59]} 2. Nf3 {[%clk 0:03:00]}  d6 {[%clk 0:02:59]} 3. Bb5+ {[%clk 0:03:01]}  Nd7 {[%clk 0:02:59]} 4. d4 {[%clk 0:02:59]}  cxd4 {[%clk 0:02:59]} 5. Qxd4 {[%clk 0:03:00]}  a6 {[%clk 0:02:59]} 6. Be2 {[%clk 0:03:01]}  Ngf6 {[%clk 0:02:58]} 7. O-O {[%clk 0:03:02]}  e5 {[%clk 0:02:58]} 8. Qe3 {[%clk 0:03:02]}  h6 {[%clk 0:02:58]} 9. Rd1 {[%clk 0:03:00]}  Be7 {[%clk 0:02:59]} 10. c4 {[%clk 0:02:59]}  O-O {[%clk 0:02:59]} 11. Nc3 {[%clk 0:02:59]}  b6 {[%clk 0:02:44]} 12. b3 {[%clk 0:02:58]}  Bb7 {[%clk 0:02:42]} 13. Ba3 {[%clk 0:02:58]}  Qc7 {[%clk 0:02:42]} 14. Rac1 {[%clk 0:02:56]}  Rac8 {[%clk 0:02:31]} 15. Nh4 {[%clk 0:02:37]}  Nc5 {[%clk 0:02:09]} 16. Nf5 {[%clk 0:02:32]}  Ncxe4 {[%clk 0:02:04]} 17. Nxe4 {[%clk 0:02:15]}  Nxe4 {[%clk 0:01:59]} 18. Nxe7+ {[%clk 0:02:09]}  Qxe7 {[%clk 0:01:58]} 19. Qxb6 {[%clk 0:02:08]}  Rfd8 {[%clk 0:01:44]} 20. Bg4 {[%clk 0:01:57]}  Rc7 {[%clk 0:01:33]} 21. Bf3 {[%clk 0:01:47]}  Nc5 {[%clk 0:01:14]} 22. Bd5 {[%clk 0:01:09]}  Bxd5 {[%clk 0:00:51]} 23. Rxd5 {[%clk 0:01:08]}  Rb7 {[%clk 0:00:48]} 24. Qa5 {[%clk 0:01:05]}  Ne6 {[%clk 0:00:30]} 25. Rxe5 {[%clk 0:01:03]}  Qf6 {[%clk 0:00:28]} 26. Rf5 {[%clk 0:00:49]}  Qg6 {[%clk 0:00:23]} 27. Re1 {[%clk 0:00:47]}  Kh7 {[%clk 0:00:20]} 28. Bb2 {[%clk 0:00:34]}  Re8 {[%clk 0:00:19]} 29. h3 {[%clk 0:00:26]}  Rbe7 {[%clk 0:00:18]} 30. g4 {[%clk 0:00:19]}  Nc5 {[%clk 0:00:17]} 31. Rxe7 {[%clk 0:00:17]}  Rxe7 {[%clk 0:00:18]} 32. Qc3 {[%clk 0:00:17]}  Ne4 {[%clk 0:00:17]} 33. Qe3 {[%clk 0:00:14]}  Qe6 {[%clk 0:00:12]} 34. Kg2 {[%clk 0:00:11]}  Qd7 {[%clk 0:00:10]} 35. Qd4 {[%clk 0:00:10]}  f6 {[%clk 0:00:07]} 36. Qd5 {[%clk 0:00:10]}  Qc7 {[%clk 0:00:04]} 37. Bd4 {[%clk 0:00:09]}  Ng5 {[%clk 0:00:04]} 38. Be3 {[%clk 0:00:09]}  Ne6 {[%clk 0:00:05]} 39. h4 {[%clk 0:00:08]}  Re8 {[%clk 0:00:05]} 40. g5 {[%clk 0:00:08]}  hxg5 {[%clk 0:00:04]} 41. hxg5 {[%clk 0:00:09]}  fxg5 {[%clk 0:00:04]} 42. Bxg5 {[%clk 0:00:09]}  Nxg5 {[%clk 0:00:04]} 43. Rxg5 {[%clk 0:00:09]}  Qe7 {[%clk 0:00:05]} 44. Qf5+ {[%clk 0:00:09]}  Kg8 {[%clk 0:00:04]} 45. Qd5+ {[%clk 0:00:08]}  Qe6 {[%clk 0:00:01]} 46. Qxe6+ {[%clk 0:00:07]}  Rxe6 {[%clk 0:00:02]} 47. Ra5 {[%clk 0:00:08]}  Rg6+ {[%clk 0:00:01]} 48. Kf1 {[%clk 0:00:08]}  d5 {[%clk 0:00:00]} 49. Rxd5 {[%clk 0:00:07]} 1-0

[Event "December 19 Early 2023"]
[Site "https://www.chess.com"]
[Date "2023.12.19"]
[Round "9"]
[White "Boor, Carl"]
[Black "Cristobal, Manuel"]
[Result "0-1"]
[Board "67"]
[TimeControl "180+1"]
[WhiteFideId "2017008"]
[BlackFideId "112879"]
[WhiteElo "2330"]
[BlackElo "2244"]
[WhiteTeam "USA"]
[BlackTeam "ARG"]
[WhiteClock "0:00:00"]
[BlackClock "0:01:29"]

1. d4 {[%clk 0:03:00]}  Nf6 {[%clk 0:02:59]} 2. Bg5 {[%clk 0:02:59]}  Ne4 {[%clk 0:02:58]} 3. Be3 {[%clk 0:02:59]}  d5 {[%clk 0:02:57]} 4. f3 {[%clk 0:02:59]}  Nd6 {[%clk 0:02:57]} 5. Bf2 {[%clk 0:02:58]}  Bf5 {[%clk 0:02:54]} 6. e3 {[%clk 0:02:57]}  e6 {[%clk 0:02:50]} 7. Ne2 {[%clk 0:02:55]}  Nd7 {[%clk 0:02:50]} 8. g4 {[%clk 0:02:53]}  Bg6 {[%clk 0:02:49]} 9. Nf4 {[%clk 0:02:53]}  c6 {[%clk 0:02:47]} 10. h4 {[%clk 0:02:52]}  e5 {[%clk 0:02:46]} 11. dxe5 {[%clk 0:02:51]}  Nxe5 {[%clk 0:02:46]} 12. h5 {[%clk 0:02:50]}  Nxf3+ {[%clk 0:02:45]} 13. Qxf3 {[%clk 0:02:47]}  Be4 {[%clk 0:02:46]} 14. Qh3 {[%clk 0:02:46]}  Bxh1 {[%clk 0:02:45]} 15. Qxh1 {[%clk 0:02:45]}  Ne4 {[%clk 0:02:45]} 16. Nd2 {[%clk 0:02:42]}  Nxf2 {[%clk 0:02:35]} 17. Kxf2 {[%clk 0:02:41]}  Bd6 {[%clk 0:02:36]} 18. Bd3 {[%clk 0:02:39]}  Qb6 {[%clk 0:02:34]} 19. Qf3 {[%clk 0:02:38]}  O-O-O {[%clk 0:02:33]} 20. Nb3 {[%clk 0:02:29]}  g6 {[%clk 0:02:31]} 21. c4 {[%clk 0:02:24]}  dxc4 {[%clk 0:02:30]} 22. Bxc4 {[%clk 0:02:24]}  Rhf8 {[%clk 0:02:24]} 23. g5 {[%clk 0:02:17]}  Bxf4 {[%clk 0:02:18]} 24. Qxf4 {[%clk 0:02:17]}  Qc7 {[%clk 0:02:18]} 25. Kf3 {[%clk 0:02:06]}  b5 {[%clk 0:02:12]} 26. Bf1 {[%clk 0:01:59]}  Rd5 {[%clk 0:02:03]} 27. Rc1 {[%clk 0:01:53]}  Qxf4+ {[%clk 0:01:55]} 28. exf4 {[%clk 0:01:52]}  Kc7 {[%clk 0:01:53]} 29. Na5 {[%clk 0:01:30]}  Kb6 {[%clk 0:01:51]} 30. Nxc6 {[%clk 0:00:42]}  Rc8 {[%clk 0:01:49]} 31. Nb4 {[%clk 0:00:36]}  Rxc1 {[%clk 0:01:48]} 32. Nxd5+ {[%clk 0:00:36]}  Kc5 {[%clk 0:01:49]} 33. Ne3 {[%clk 0:00:34]}  Rb1 {[%clk 0:01:49]} 34. b3 {[%clk 0:00:31]}  Rb2 {[%clk 0:01:45]} 35. Bd3 {[%clk 0:00:26]}  Rxa2 {[%clk 0:01:44]} 36. f5 {[%clk 0:00:21]}  Ra6 {[%clk 0:01:35]} 37. f6 {[%clk 0:00:16]}  Rd6 {[%clk 0:01:34]} 38. Be4 {[%clk 0:00:13]}  a5 {[%clk 0:01:33]} 39. hxg6 {[%clk 0:00:13]}  hxg6 {[%clk 0:01:32]} 40. Ng4 {[%clk 0:00:13]}  a4 {[%clk 0:01:32]} 41. bxa4 {[%clk 0:00:13]}  bxa4 {[%clk 0:01:33]} 42. Ne5 {[%clk 0:00:13]}  a3 {[%clk 0:01:33]} 43. Nxf7 {[%clk 0:00:13]}  Rd1 {[%clk 0:01:32]} 44. Ne5 {[%clk 0:00:04]}  a2 {[%clk 0:01:32]} 45. f7 {[%clk 0:00:05]}  Rf1+ {[%clk 0:01:30]} 46. Ke2 {[%clk 0:00:05]}  a1=Q {[%clk 0:01:31]} 47. Nd3+ {[%clk 0:00:00]}  Kd4 {[%clk 0:01:29]} 0-1

[Event "December 19 Early 2023"]
[Site "https://www.chess.com"]
[Date "2023.12.19"]
[Round "9"]
[White "Ovetchkin, Roman"]
[Black "Karas, Marek"]
[Result "0-1"]
[Board "68"]
[TimeControl "180+1"]
[WhiteFideId "4119991"]
[BlackFideId "14928558"]
[WhiteElo "2381"]
[BlackElo "2218"]
[WhiteTeam "RUS"]
[BlackTeam "CZE"]
[WhiteClock "0:00:13"]
[BlackClock "0:00:03"]

1. d4 {[%clk 0:03:00]}  Nf6 {[%clk 0:02:59]} 2. c4 {[%clk 0:03:00]}  e6 {[%clk 0:02:59]} 3. g3 {[%clk 0:03:00]}  d5 {[%clk 0:02:56]} 4. Bg2 {[%clk 0:03:00]}  h6 {[%clk 0:02:57]} 5. Nf3 {[%clk 0:03:00]}  Bd6 {[%clk 0:02:56]} 6. O-O {[%clk 0:02:56]}  O-O {[%clk 0:02:55]} 7. Nc3 {[%clk 0:02:56]}  Nc6 {[%clk 0:02:49]} 8. b3 {[%clk 0:02:48]}  dxc4 {[%clk 0:02:48]} 9. bxc4 {[%clk 0:02:48]}  e5 {[%clk 0:02:47]} 10. d5 {[%clk 0:02:41]}  Ne7 {[%clk 0:02:45]} 11. h3 {[%clk 0:02:36]}  Bf5 {[%clk 0:02:20]} 12. Nd2 {[%clk 0:02:14]}  Nd7 {[%clk 0:02:11]} 13. Nde4 {[%clk 0:02:06]}  Bxe4 {[%clk 0:02:00]} 14. Nxe4 {[%clk 0:02:04]}  f5 {[%clk 0:01:58]} 15. Nxd6 {[%clk 0:02:03]}  cxd6 {[%clk 0:01:59]} 16. Ba3 {[%clk 0:01:53]}  Qc7 {[%clk 0:01:58]} 17. Rc1 {[%clk 0:01:48]}  b6 {[%clk 0:01:50]} 18. e4 {[%clk 0:01:43]}  f4 {[%clk 0:01:45]} 19. h4 {[%clk 0:01:40]}  Nc5 {[%clk 0:01:42]} 20. Re1 {[%clk 0:01:20]}  Rf6 {[%clk 0:01:34]} 21. Rc3 {[%clk 0:01:19]}  Raf8 {[%clk 0:01:32]} 22. Rf3 {[%clk 0:01:14]}  fxg3 {[%clk 0:01:08]} 23. fxg3 {[%clk 0:01:13]}  Qd7 {[%clk 0:00:55]} 24. Rxf6 {[%clk 0:01:08]}  Rxf6 {[%clk 0:00:54]} 25. Rf1 {[%clk 0:01:05]}  Rxf1+ {[%clk 0:00:42]} 26. Qxf1 {[%clk 0:01:05]}  Qg4 {[%clk 0:00:28]} 27. Qe1 {[%clk 0:00:56]}  Kh8 {[%clk 0:00:18]} 28. Kh2 {[%clk 0:00:52]}  Ng8 {[%clk 0:00:18]} 29. Bxc5 {[%clk 0:00:43]}  bxc5 {[%clk 0:00:19]} 30. Qf1 {[%clk 0:00:39]}  Nf6 {[%clk 0:00:19]} 31. Bf3 {[%clk 0:00:39]}  Qg6 {[%clk 0:00:15]} 32. Qe2 {[%clk 0:00:36]}  Qf7 {[%clk 0:00:13]} 33. Kg2 {[%clk 0:00:35]}  Qb7 {[%clk 0:00:12]} 34. g4 {[%clk 0:00:34]}  Ng8 {[%clk 0:00:07]} 35. g5 {[%clk 0:00:34]}  Qb1 {[%clk 0:00:05]} 36. Bg4 {[%clk 0:00:31]}  Qc1 {[%clk 0:00:04]} 37. gxh6 {[%clk 0:00:25]}  Nxh6 {[%clk 0:00:05]} 38. Be6 {[%clk 0:00:25]}  Qf4 {[%clk 0:00:05]} 39. Qf3 {[%clk 0:00:24]}  Qxf3+ {[%clk 0:00:05]} 40. Kxf3 {[%clk 0:00:24]}  Kh7 {[%clk 0:00:05]} 41. h5 {[%clk 0:00:24]}  g6 {[%clk 0:00:05]} 42. hxg6+ {[%clk 0:00:24]}  Kxg6 {[%clk 0:00:06]} 43. Ke3 {[%clk 0:00:24]}  Kg5 {[%clk 0:00:05]} 44. Kf3 {[%clk 0:00:22]}  Kh5 {[%clk 0:00:05]} 45. Kg3 {[%clk 0:00:23]}  Kg5 {[%clk 0:00:06]} 46. Kf3 {[%clk 0:00:23]}  Kh5 {[%clk 0:00:06]} 47. Ke3 {[%clk 0:00:23]}  Kg5 {[%clk 0:00:06]} 48. Kd3 {[%clk 0:00:24]}  Ng4 {[%clk 0:00:06]} 49. Kc2 {[%clk 0:00:23]}  Nf6 {[%clk 0:00:05]} 50. Bf5 {[%clk 0:00:22]}  Kf4 {[%clk 0:00:06]} 51. Kb3 {[%clk 0:00:23]}  Nxe4 {[%clk 0:00:06]} 52. Bh7 {[%clk 0:00:20]}  Ng5 {[%clk 0:00:04]} 53. Bc2 {[%clk 0:00:19]}  e4 {[%clk 0:00:04]} 54. Ka4 {[%clk 0:00:20]}  Ke5 {[%clk 0:00:05]} 55. Kb5 {[%clk 0:00:19]}  e3 {[%clk 0:00:04]} 56. Bd1 {[%clk 0:00:19]}  Ne4 {[%clk 0:00:03]} 57. Kc6 {[%clk 0:00:19]}  Nc3 {[%clk 0:00:03]} 58. Bf3 {[%clk 0:00:13]}  Nxa2 {[%clk 0:00:03]} 0-1

[Event "December 19 Early 2023"]
[Site "https://www.chess.com"]
[Date "2023.12.19"]
[Round "9"]
[White "Mazurkiewicz, Michal"]
[Black "Gontcharov, Vladislav"]
[Result "0-1"]
[Board "71"]
[TimeControl "180+1"]
[WhiteFideId "1124943"]
[BlackFideId "4123492"]
[WhiteElo "2103"]
[BlackElo "2420"]
[WhiteTeam "POL"]
[BlackTeam "RUS"]
[WhiteClock "0:00:01"]
[BlackClock "0:01:01"]

1. e4 {[%clk 0:03:00]}  e6 {[%clk 0:02:59]} 2. d3 {[%clk 0:03:00]}  c5 {[%clk 0:02:58]} 3. Nf3 {[%clk 0:03:00]}  Nc6 {[%clk 0:02:59]} 4. g3 {[%clk 0:03:00]}  g6 {[%clk 0:02:59]} 5. Bg2 {[%clk 0:03:00]}  Bg7 {[%clk 0:02:59]} 6. O-O {[%clk 0:03:00]}  Nge7 {[%clk 0:02:59]} 7. Re1 {[%clk 0:03:00]}  d6 {[%clk 0:02:58]} 8. c3 {[%clk 0:03:00]}  e5 {[%clk 0:02:58]} 9. a3 {[%clk 0:02:52]}  O-O {[%clk 0:02:53]} 10. b4 {[%clk 0:02:51]}  b6 {[%clk 0:02:44]} 11. Bb2 {[%clk 0:02:24]}  h6 {[%clk 0:02:40]} 12. Nbd2 {[%clk 0:02:24]}  Be6 {[%clk 0:02:36]} 13. Nb3 {[%clk 0:01:59]}  Qc7 {[%clk 0:02:16]} 14. d4 {[%clk 0:01:57]}  exd4 {[%clk 0:02:12]} 15. cxd4 {[%clk 0:01:56]}  cxb4 {[%clk 0:02:00]} 16. axb4 {[%clk 0:01:36]}  Nxb4 {[%clk 0:01:56]} 17. Ba3 {[%clk 0:01:27]}  Nc2 {[%clk 0:01:52]} 18. Rc1 {[%clk 0:01:23]}  Bxb3 {[%clk 0:01:50]} 19. Qd3 {[%clk 0:01:02]}  Ba4 {[%clk 0:01:44]} 20. Re2 {[%clk 0:00:58]}  Rac8 {[%clk 0:01:34]} 21. Qa6 {[%clk 0:00:30]}  Qd7 {[%clk 0:01:24]} 22. e5 {[%clk 0:00:18]}  Bb5 {[%clk 0:01:19]} 23. Qxb5 {[%clk 0:00:10]}  Qxb5 {[%clk 0:01:18]} 24. Rexc2 {[%clk 0:00:09]}  Rxc2 {[%clk 0:01:17]} 25. Rxc2 {[%clk 0:00:09]}  Qb3 {[%clk 0:01:15]} 26. exd6 {[%clk 0:00:05]}  Qxa3 {[%clk 0:01:04]} 27. dxe7 {[%clk 0:00:03]}  Qxe7 {[%clk 0:01:03]} 28. Bf1 {[%clk 0:00:01]}  Qe4 {[%clk 0:01:01]} 0-1

[Event "December 19 Early 2023"]
[Site "https://www.chess.com"]
[Date "2023.12.19"]
[Round "9"]
[White "Eilers, Stefan"]
[Black "Ezat, Mohamed"]
[Result "1/2-1/2"]
[Board "74"]
[TimeControl "180+1"]
[WhiteFideId "4609565"]
[BlackFideId "10600906"]
[WhiteElo "2453"]
[BlackElo "2367"]
[WhiteTeam "GER"]
[BlackTeam "EGY"]
[WhiteClock "0:00:10"]
[BlackClock "0:00:37"]

1. d4 {[%clk 0:03:00]}  Nf6 {[%clk 0:02:53]} 2. Nc3 {[%clk 0:03:01]}  d5 {[%clk 0:02:52]} 3. Bf4 {[%clk 0:03:01]}  c5 {[%clk 0:02:51]} 4. e4 {[%clk 0:02:59]}  cxd4 {[%clk 0:02:49]} 5. Qxd4 {[%clk 0:02:58]}  Nc6 {[%clk 0:02:49]} 6. Bb5 {[%clk 0:02:58]}  Bd7 {[%clk 0:02:48]} 7. Bxc6 {[%clk 0:02:59]}  Bxc6 {[%clk 0:02:47]} 8. e5 {[%clk 0:03:00]}  Ne4 {[%clk 0:02:45]} 9. e6 {[%clk 0:02:58]}  f6 {[%clk 0:02:26]} 10. Nge2 {[%clk 0:02:46]}  g5 {[%clk 0:02:13]} 11. Be3 {[%clk 0:02:32]}  Bg7 {[%clk 0:02:04]} 12. O-O-O {[%clk 0:02:09]}  O-O {[%clk 0:01:55]} 13. Nxd5 {[%clk 0:02:07]}  Bxd5 {[%clk 0:01:52]} 14. Qxd5 {[%clk 0:02:07]}  Qxd5 {[%clk 0:01:50]} 15. Rxd5 {[%clk 0:02:06]}  f5 {[%clk 0:01:45]} 16. f3 {[%clk 0:01:34]}  f4 {[%clk 0:01:44]} 17. Bd4 {[%clk 0:01:27]}  Nd6 {[%clk 0:01:01]} 18. Bxg7 {[%clk 0:01:17]}  Kxg7 {[%clk 0:00:55]} 19. Rxg5+ {[%clk 0:01:17]}  Kh8 {[%clk 0:00:54]} 20. Rd1 {[%clk 0:01:07]}  Rf6 {[%clk 0:00:51]} 21. Re5 {[%clk 0:01:03]}  Rg8 {[%clk 0:00:48]} 22. g3 {[%clk 0:01:03]}  fxg3 {[%clk 0:00:47]} 23. Nxg3 {[%clk 0:00:47]}  Rxf3 {[%clk 0:00:45]} 24. b3 {[%clk 0:00:42]}  a5 {[%clk 0:00:44]} 25. a4 {[%clk 0:00:32]}  Rc8 {[%clk 0:00:41]} 26. Kb2 {[%clk 0:00:26]}  Rfc3 {[%clk 0:00:40]} 27. Rd2 {[%clk 0:00:24]}  b5 {[%clk 0:00:38]} 28. axb5 {[%clk 0:00:21]}  a4 {[%clk 0:00:38]} 29. Nf5 {[%clk 0:00:21]}  Nxf5 {[%clk 0:00:35]} 30. Rxf5 {[%clk 0:00:21]}  axb3 {[%clk 0:00:35]} 31. cxb3 {[%clk 0:00:20]}  Re3 {[%clk 0:00:36]} 32. Rdf2 {[%clk 0:00:09]}  Rcc3 {[%clk 0:00:35]} 33. Rf8+ {[%clk 0:00:08]}  Kg7 {[%clk 0:00:36]} 34. R8f7+ {[%clk 0:00:09]}  Kh6 {[%clk 0:00:35]} 35. Rxe7 {[%clk 0:00:08]}  Rxb3+ {[%clk 0:00:36]} 36. Kc2 {[%clk 0:00:08]}  Rbc3+ {[%clk 0:00:36]} 37. Kd2 {[%clk 0:00:09]}  Rcd3+ {[%clk 0:00:36]} 38. Kc2 {[%clk 0:00:09]}  Rc3+ {[%clk 0:00:36]} 39. Kd2 {[%clk 0:00:10]}  Rcd3+ {[%clk 0:00:36]} 40. Kc2 {[%clk 0:00:10]}  Rc3+ {[%clk 0:00:37]} 1/2-1/2

[Event "December 19 Early 2023"]
[Site "https://www.chess.com"]
[Date "2023.12.19"]
[Round "9"]
[White "Melikhov, Evgeny V."]
[Black "Kavyev, Ruslan"]
[Result "0-1"]
[Board "75"]
[TimeControl "180+1"]
[WhiteFideId "4122046"]
[BlackFideId "34110981"]
[WhiteElo "2165"]
[BlackElo "2336"]
[WhiteTeam "GRE"]
[BlackTeam "RUS"]
[WhiteClock "0:00:00"]
[BlackClock "0:00:11"]

1. d4 {[%clk 0:03:00]}  Nf6 {[%clk 0:00:38]} 2. c4 {[%clk 0:02:57]}  g6 {[%clk 0:00:39]} 3. Nc3 {[%clk 0:02:56]}  Bg7 {[%clk 0:00:39]} 4. e4 {[%clk 0:02:56]}  d6 {[%clk 0:00:40]} 5. f3 {[%clk 0:02:56]}  O-O {[%clk 0:00:40]} 6. Be3 {[%clk 0:02:56]}  a6 {[%clk 0:00:40]} 7. Qd2 {[%clk 0:02:54]}  Nbd7 {[%clk 0:00:40]} 8. Bh6 {[%clk 0:02:50]}  e5 {[%clk 0:00:38]} 9. d5 {[%clk 0:02:50]}  Nxe4 {[%clk 0:00:37]} 10. Nxe4 {[%clk 0:02:41]}  Qh4+ {[%clk 0:00:36]} 11. g3 {[%clk 0:02:38]}  Qxh6 {[%clk 0:00:37]} 12. Qxh6 {[%clk 0:02:34]}  Bxh6 {[%clk 0:00:38]} 13. h4 {[%clk 0:02:32]}  Be3 {[%clk 0:00:26]} 14. Ne2 {[%clk 0:02:18]}  h6 {[%clk 0:00:24]} 15. g4 {[%clk 0:02:01]}  f5 {[%clk 0:00:23]} 16. gxf5 {[%clk 0:02:01]}  gxf5 {[%clk 0:00:24]} 17. N4g3 {[%clk 0:01:54]}  Nf6 {[%clk 0:00:24]} 18. Nc3 {[%clk 0:01:51]}  Bd4 {[%clk 0:00:22]} 19. Bd3 {[%clk 0:01:47]}  Bxc3+ {[%clk 0:00:21]} 20. bxc3 {[%clk 0:01:48]}  f4 {[%clk 0:00:21]} 21. Ne4 {[%clk 0:01:44]}  Nxe4 {[%clk 0:00:22]} 22. Bxe4 {[%clk 0:01:45]}  Bf5 {[%clk 0:00:22]} 23. Rg1+ {[%clk 0:01:41]}  Kh7 {[%clk 0:00:22]} 24. Bxf5+ {[%clk 0:01:37]}  Rxf5 {[%clk 0:00:23]} 25. Ke2 {[%clk 0:01:33]}  Rff8 {[%clk 0:00:21]} 26. Kd3 {[%clk 0:01:24]}  Rg8 {[%clk 0:00:19]} 27. Ke4 {[%clk 0:01:25]}  b6 {[%clk 0:00:18]} 28. Kf5 {[%clk 0:01:11]}  Rxg1 {[%clk 0:00:17]} 29. Rxg1 {[%clk 0:01:11]}  Rg8 {[%clk 0:00:18]} 30. Rf1 {[%clk 0:00:45]}  Rg2 {[%clk 0:00:11]} 31. Ke6 {[%clk 0:00:45]}  Rg7 {[%clk 0:00:03]} 32. h5 {[%clk 0:00:36]}  a5 {[%clk 0:00:04]} 33. Rb1 {[%clk 0:00:28]}  Kg8 {[%clk 0:00:03]} 34. c5 {[%clk 0:00:27]}  dxc5 {[%clk 0:00:02]} 35. Kxe5 {[%clk 0:00:27]}  Rg5+ {[%clk 0:00:03]} 36. Ke6 {[%clk 0:00:24]}  Rxh5 {[%clk 0:00:03]} 37. c4 {[%clk 0:00:24]}  Rg5 {[%clk 0:00:03]} 38. Kd7 {[%clk 0:00:23]}  Rg7+ {[%clk 0:00:03]} 39. Ke8 {[%clk 0:00:17]}  h5 {[%clk 0:00:03]} 40. Rh1 {[%clk 0:00:17]}  Rh7 {[%clk 0:00:04]} 41. Rh4 {[%clk 0:00:18]}  Kg7 {[%clk 0:00:04]} 42. Rxf4 {[%clk 0:00:17]}  h4 {[%clk 0:00:04]} 43. Rg4+ {[%clk 0:00:17]}  Kf6 {[%clk 0:00:05]} 44. Rg1 {[%clk 0:00:14]}  h3 {[%clk 0:00:05]} 45. Rh1 {[%clk 0:00:14]}  h2 {[%clk 0:00:06]} 46. Kd8 {[%clk 0:00:13]}  Ke5 {[%clk 0:00:06]} 47. Kc8 {[%clk 0:00:08]}  Kd4 {[%clk 0:00:06]} 48. f4 {[%clk 0:00:06]}  Kxc4 {[%clk 0:00:06]} 49. f5 {[%clk 0:00:06]}  Kxd5 {[%clk 0:00:07]} 50. f6 {[%clk 0:00:07]}  Ke6 {[%clk 0:00:07]} 51. f7 {[%clk 0:00:07]}  Kxf7 {[%clk 0:00:08]} 52. Kxc7 {[%clk 0:00:07]}  Rh6 {[%clk 0:00:08]} 53. Kd7 {[%clk 0:00:06]}  c4 {[%clk 0:00:08]} 54. a4 {[%clk 0:00:06]}  c3 {[%clk 0:00:09]} 55. Kc7 {[%clk 0:00:02]}  c2 {[%clk 0:00:09]} 56. Kd7 {[%clk 0:00:02]}  c1=Q {[%clk 0:00:10]} 57. Rxc1 {[%clk 0:00:00]}  h1=Q {[%clk 0:00:11]} 0-1